[Event "Late-Titled-Tuesday-Blitz-September-19-2023"]
[Site "Chess.com"]
[Date "2023.09.19"]
[Round "3"]
[White "cassoulet"]
[Black "tgpgoat"]
[Result "1-0"]
[WhiteElo "2764"]
[BlackElo "2502"]
[TimeControl "180+1"]
[EndTime "14:27:06 PDT"]
[Termination "cassoulet won by resignation"]

1. d4 {[%clk 0:03:00.9]} 1... Nf6 {[%clk 0:02:59.7]} 2. Bg5 {[%clk 0:03:00.4]}
2... Ne4 {[%clk 0:02:59.1]} 3. Bf4 {[%clk 0:03:00.2]} 3... d5 {[%clk 0:02:58.6]}
4. Nd2 {[%clk 0:02:59.9]} 4... g6 {[%clk 0:02:57.7]} 5. Nxe4 {[%clk 0:02:59.6]}
5... dxe4 {[%clk 0:02:58.6]} 6. e3 {[%clk 0:03:00.1]} 6... Bg7 {[%clk
0:02:58.6]} 7. Bc4 {[%clk 0:03:00]} 7... O-O {[%clk 0:02:58.6]} 8. Ne2 {[%clk
0:03:00.3]} 8... c5 {[%clk 0:02:58.9]} 9. c3 {[%clk 0:03:00.1]} 9... cxd4 {[%clk
0:02:59]} 10. exd4 {[%clk 0:03:00.7]} 10... Nc6 {[%clk 0:02:58.9]} 11. Qd2
{[%clk 0:03:00.5]} 11... e5 {[%clk 0:02:58.4]} 12. dxe5 {[%clk 0:02:56.9]} 12...
Nxe5 {[%clk 0:02:59.3]} 13. Qxd8 {[%clk 0:02:46.4]} 13... Rxd8 {[%clk 0:02:58]}
14. Bxe5 {[%clk 0:02:46.7]} 14... Bxe5 {[%clk 0:02:58.9]} 15. Rd1 {[%clk
0:02:45.7]} 15... Bg4 {[%clk 0:02:56.7]} 16. h3 {[%clk 0:02:43.8]} 16... Bxe2
{[%clk 0:02:33.5]} 17. Kxe2 {[%clk 0:02:42.3]} 17... Kf8 {[%clk 0:02:32.8]} 18.
Bd5 {[%clk 0:02:42]} 18... f5 {[%clk 0:02:16.2]} 19. Bxb7 {[%clk 0:02:41.7]}
19... Rab8 {[%clk 0:02:16]} 20. Rxd8+ {[%clk 0:02:40.7]} 20... Rxd8 {[%clk
0:02:16.9]} 21. Rd1 {[%clk 0:02:34]} 21... Rxd1 {[%clk 0:02:16.2]} 22. Kxd1
{[%clk 0:02:34.9]} 22... Ke7 {[%clk 0:02:16]} 23. g4 {[%clk 0:02:34.9]} 23...
Kf6 {[%clk 0:02:09.3]} 24. gxf5 {[%clk 0:02:34.7]} 24... gxf5 {[%clk 0:02:09.5]}
25. Ke2 {[%clk 0:02:34.9]} 25... h6 {[%clk 0:02:07.2]} 26. Bd5 {[%clk
0:02:33.2]} 26... Bd6 {[%clk 0:02:04.3]} 27. f3 {[%clk 0:02:26.4]} 27... Ke5
{[%clk 0:01:53.7]} 28. Bb7 {[%clk 0:02:25.5]} 28... a5 {[%clk 0:01:48.1]} 29.
fxe4 {[%clk 0:02:21.2]} 29... fxe4 {[%clk 0:01:49]} 30. b3 {[%clk 0:02:18.6]}
30... Bc5 {[%clk 0:01:46.8]} 31. Bc6 {[%clk 0:02:13.6]} 31... Be7 {[%clk
0:01:42.8]} 32. Bb5 {[%clk 0:02:10.8]} 32... Bc5 {[%clk 0:01:42.9]} 33. Bd7
{[%clk 0:02:07.9]} 33... Kf4 {[%clk 0:01:43]} 34. Bg4 {[%clk 0:02:07.5]} 34...
Ke5 {[%clk 0:01:41.8]} 35. Kd2 {[%clk 0:02:07.4]} 35... Kf4 {[%clk 0:01:37.5]}
36. Bc8 {[%clk 0:01:52.4]} 36... Kf3 {[%clk 0:01:26.8]} 37. Bb7 {[%clk
0:01:52.3]} 37... Kf4 {[%clk 0:01:26.5]} 38. Ke2 {[%clk 0:01:52.2]} 38... Ke5
{[%clk 0:01:19.8]} 39. Kf1 {[%clk 0:01:51.6]} 39... Kf4 {[%clk 0:01:19.6]} 40.
Kg2 {[%clk 0:01:51.3]} 40... h5 {[%clk 0:01:16]} 41. Ba6 {[%clk 0:01:43.1]}
41... h4 {[%clk 0:01:15.1]} 42. Bb7 {[%clk 0:01:41.5]} 42... Be7 {[%clk
0:01:11.4]} 43. Kf1 {[%clk 0:01:40.5]} 43... Bc5 {[%clk 0:01:09.2]} 44. Ke2
{[%clk 0:01:40.7]} 44... Be7 {[%clk 0:01:05.7]} 45. Bc8 {[%clk 0:01:40.8]} 45...
Bc5 {[%clk 0:01:05.4]} 46. Bg4 {[%clk 0:01:41.2]} 46... Be7 {[%clk 0:01:05.4]}
47. Kd2 {[%clk 0:01:41.4]} 47... Bc5 {[%clk 0:01:04.7]} 48. Be2 {[%clk
0:01:35.3]} 48... Kg3 {[%clk 0:01:01]} 49. Bg4 {[%clk 0:01:33.4]} 49... Kf4
{[%clk 0:01:01]} 50. Bd7 {[%clk 0:01:32.6]} 50... Be7 {[%clk 0:01:00]} 51. Bc6
{[%clk 0:01:30.5]} 51... Bc5 {[%clk 0:00:57.2]} 52. a4 {[%clk 0:01:29.2]} 52...
Be7 {[%clk 0:00:55.4]} 53. Kc2 {[%clk 0:01:20.7]} 53... Ba3 {[%clk 0:00:55.4]}
54. b4 {[%clk 0:01:17.2]} 54... e3 {[%clk 0:00:36.6]} 55. bxa5 {[%clk
0:01:00.2]} 55... Bc5 {[%clk 0:00:36.2]} 56. Kd3 {[%clk 0:00:59.4]} 56... Kg3
{[%clk 0:00:36]} 57. Bd7 {[%clk 0:00:58.1]} 57... Kf2 {[%clk 0:00:32.5]} 58. Bg4
{[%clk 0:00:58.2]} 58... Ba7 {[%clk 0:00:32.8]} 59. a6 {[%clk 0:00:58]} 59...
Bb6 {[%clk 0:00:33]} 60. a5 {[%clk 0:00:58]} 60... Ba7 {[%clk 0:00:33.6]} 61.
Bh5 {[%clk 0:00:53.5]} 61... Bc5 {[%clk 0:00:28.2]} 62. Kc4 {[%clk 0:00:51]}
62... Ba7 {[%clk 0:00:28.5]} 63. Kd5 {[%clk 0:00:44.7]} 63... e2 {[%clk
0:00:28.3]} 64. Bxe2 {[%clk 0:00:44.3]} 64... Kxe2 {[%clk 0:00:29.2]} 65. Kc6
{[%clk 0:00:45]} 65... Kf3 {[%clk 0:00:29.1]} 66. Kb7 {[%clk 0:00:45.5]} 66...
Bf2 {[%clk 0:00:28.8]} 67. a7 {[%clk 0:00:46.4]} 67... Bxa7 {[%clk 0:00:29]} 68.
Kxa7 {[%clk 0:00:47.2]} 68... Kg3 {[%clk 0:00:29.6]} 69. a6 {[%clk 0:00:47.8]}
69... Kxh3 {[%clk 0:00:30.5]} 70. Kb8 {[%clk 0:00:47.4]} 70... Kg2 {[%clk
0:00:29.3]} 71. a7 {[%clk 0:00:47.8]} 71... h3 {[%clk 0:00:30.2]} 72. a8=Q+
{[%clk 0:00:48.1]} 1-0

[Event "Late-Titled-Tuesday-Blitz-September-19-2023"]
[Site "Chess.com"]
[Date "2023.09.19"]
[Round "3"]
[White "mishanick"]
[Black "ilya2700"]
[Result "1-0"]
[WhiteElo "3111"]
[BlackElo "2304"]
[TimeControl "180+1"]
[EndTime "14:27:08 PDT"]
[Termination "mishanick won by resignation"]

1. d4 {[%clk 0:03:00.9]} 1... d5 {[%clk 0:02:54.6]} 2. c4 {[%clk 0:03:00.6]}
2... c6 {[%clk 0:02:49.5]} 3. Nf3 {[%clk 0:02:46.9]} 3... Nf6 {[%clk 0:02:48.3]}
4. e3 {[%clk 0:02:47.1]} 4... e6 {[%clk 0:02:46.8]} 5. Nbd2 {[%clk 0:02:46.9]}
5... Be7 {[%clk 0:02:45.5]} 6. b3 {[%clk 0:02:47.2]} 6... O-O {[%clk 0:02:46.2]}
7. Bb2 {[%clk 0:02:47.8]} 7... Nbd7 {[%clk 0:02:45.5]} 8. Bd3 {[%clk 0:02:48.3]}
8... dxc4 {[%clk 0:02:45.7]} 9. Nxc4 {[%clk 0:02:47.3]} 9... c5 {[%clk
0:02:40.9]} 10. O-O {[%clk 0:02:46.7]} 10... b6 {[%clk 0:02:40.7]} 11. Nfe5
{[%clk 0:02:33.1]} 11... Bb7 {[%clk 0:02:37.1]} 12. Qe2 {[%clk 0:02:29]} 12...
cxd4 {[%clk 0:02:22.2]} 13. Bxd4 {[%clk 0:02:28]} 13... Nxe5 {[%clk 0:02:17.4]}
14. Nxe5 {[%clk 0:02:28.9]} 14... Qd5 {[%clk 0:02:15]} 15. f3 {[%clk 0:02:26.4]}
15... Rac8 {[%clk 0:01:53.1]} 16. Rfd1 {[%clk 0:02:21.6]} 16... Qa5 {[%clk
0:01:50.4]} 17. a3 {[%clk 0:02:20.6]} 17... Rfd8 {[%clk 0:01:44.8]} 18. Bb2
{[%clk 0:01:59.3]} 18... Nd5 {[%clk 0:01:19]} 19. b4 {[%clk 0:01:42]} 19... Qa4
{[%clk 0:01:18.3]} 20. Bb5 {[%clk 0:01:28.4]} 20... Qc2 {[%clk 0:01:10.6]} 21.
Rd2 {[%clk 0:01:27.6]} 21... Qc7 {[%clk 0:01:07.8]} 22. Rc1 {[%clk 0:01:08.4]}
22... Qb8 {[%clk 0:01:07.1]} 23. Nc6 {[%clk 0:01:08.3]} 23... Bxc6 {[%clk
0:01:05.7]} 24. Bxc6 {[%clk 0:01:09.2]} 24... Bg5 {[%clk 0:00:56.8]} 25. f4
{[%clk 0:01:03.2]} 25... Bf6 {[%clk 0:00:47.4]} 26. b5 {[%clk 0:01:01.5]} 26...
Bxb2 {[%clk 0:00:43.7]} 27. Rxb2 {[%clk 0:01:02.4]} 27... Qd6 {[%clk 0:00:43.2]}
28. a4 {[%clk 0:00:59.4]} 28... e5 {[%clk 0:00:41.7]} 29. Rd2 {[%clk 0:00:56.3]}
29... Nxf4 {[%clk 0:00:28.5]} 30. exf4 {[%clk 0:00:38.2]} 30... Qxd2 {[%clk
0:00:27.8]} 31. Qxd2 {[%clk 0:00:39]} 31... Rxd2 {[%clk 0:00:28.3]} 32. fxe5
{[%clk 0:00:39.8]} 32... Rd4 {[%clk 0:00:25.9]} 33. Ra1 {[%clk 0:00:38.8]} 33...
Kf8 {[%clk 0:00:24.8]} 34. a5 {[%clk 0:00:39.1]} 34... bxa5 {[%clk 0:00:23.5]}
35. Rxa5 {[%clk 0:00:40]} 35... Rc7 {[%clk 0:00:24.2]} 36. b6 {[%clk 0:00:37.7]}
36... Rxc6 {[%clk 0:00:10.2]} 37. bxa7 {[%clk 0:00:38]} 37... Rd8 {[%clk
0:00:10.1]} 38. a8=Q {[%clk 0:00:38.3]} 38... Rxa8 {[%clk 0:00:10.4]} 39. Rxa8+
{[%clk 0:00:39.2]} 39... Ke7 {[%clk 0:00:11]} 40. Kf2 {[%clk 0:00:39.6]} 40...
Ke6 {[%clk 0:00:11.2]} 41. Re8+ {[%clk 0:00:39.3]} 41... Kf5 {[%clk 0:00:10.8]}
42. Rg8 {[%clk 0:00:38.4]} 42... Kxe5 {[%clk 0:00:09.3]} 43. Rxg7 {[%clk
0:00:38.7]} 43... Rf6+ {[%clk 0:00:09.3]} 44. Kg1 {[%clk 0:00:36.9]} 44... h6
{[%clk 0:00:09.6]} 45. g3 {[%clk 0:00:36.9]} 45... Ke6 {[%clk 0:00:09.8]} 46.
Kg2 {[%clk 0:00:37]} 46... Rg6 {[%clk 0:00:10.2]} 47. Rh7 {[%clk 0:00:37.1]}
47... Kf6 {[%clk 0:00:10]} 48. Kh3 {[%clk 0:00:36.3]} 48... Ke6 {[%clk
0:00:09.8]} 49. Kh4 {[%clk 0:00:36.5]} 49... Rf6 {[%clk 0:00:06.2]} 50. Kh5
{[%clk 0:00:37.1]} 50... Rf2 {[%clk 0:00:02.5]} 51. h4 {[%clk 0:00:36.9]} 51...
Kf5 {[%clk 0:00:02.4]} 52. Rxf7+ {[%clk 0:00:35]} 1-0

[Event "Late-Titled-Tuesday-Blitz-September-19-2023"]
[Site "Chess.com"]
[Date "2023.09.19"]
[Round "3"]
[White "Nathan_Filgueiras"]
[Black "IngOscarArdila"]
[Result "1-0"]
[WhiteElo "2501"]
[BlackElo "2303"]
[TimeControl "180+1"]
[EndTime "14:27:10 PDT"]
[Termination "Nathan_Filgueiras won on time"]

1. e4 {[%clk 0:03:00.9]} 1... e5 {[%clk 0:03:00]} 2. Nf3 {[%clk 0:03:00.6]} 2...
Nf6 {[%clk 0:03:00.3]} 3. Nxe5 {[%clk 0:02:58.9]} 3... d6 {[%clk 0:03:00.1]} 4.
Nf3 {[%clk 0:02:59.1]} 4... Nxe4 {[%clk 0:03:00.5]} 5. Nc3 {[%clk 0:02:59.7]}
5... Nxc3 {[%clk 0:03:00.3]} 6. dxc3 {[%clk 0:03:00.6]} 6... Be7 {[%clk
0:03:00]} 7. Be3 {[%clk 0:02:59.9]} 7... O-O {[%clk 0:03:00.9]} 8. Bd3 {[%clk
0:02:59.9]} 8... Nd7 {[%clk 0:03:01.4]} 9. Qd2 {[%clk 0:03:00.4]} 9... Nf6
{[%clk 0:02:59.8]} 10. O-O-O {[%clk 0:03:00.1]} 10... c5 {[%clk 0:03:00.1]} 11.
h4 {[%clk 0:02:58.5]} 11... b5 {[%clk 0:03:00.3]} 12. Ng5 {[%clk 0:02:52.9]}
12... Qa5 {[%clk 0:02:58.4]} 13. Kb1 {[%clk 0:02:52.3]} 13... c4 {[%clk
0:02:46.7]} 14. Be2 {[%clk 0:02:51.8]} 14... Bb7 {[%clk 0:02:39.9]} 15. Bd4
{[%clk 0:02:51.8]} 15... d5 {[%clk 0:02:21.5]} 16. g4 {[%clk 0:02:45]} 16... b4
{[%clk 0:02:14.7]} 17. Qf4 {[%clk 0:02:19.8]} 17... Rab8 {[%clk 0:01:43.7]} 18.
Bxf6 {[%clk 0:02:00.8]} 18... Bxf6 {[%clk 0:01:41.8]} 19. Qf5 {[%clk 0:02:00.9]}
19... Bxg5 {[%clk 0:01:34.5]} 20. hxg5 {[%clk 0:02:01.6]} 20... g6 {[%clk
0:01:35]} 21. Qe5 {[%clk 0:01:56.3]} 21... Rfe8 {[%clk 0:01:25.1]} 22. Qh2
{[%clk 0:01:56.2]} 22... bxc3 {[%clk 0:00:58.7]} 23. Qxh7+ {[%clk 0:01:51.1]}
23... Kf8 {[%clk 0:00:59]} 24. Qh8+ {[%clk 0:01:40.6]} 24... Ke7 {[%clk
0:00:59]} 25. Qf6+ {[%clk 0:01:41.3]} 25... Kd7 {[%clk 0:00:59.4]} 26. Bxc4
{[%clk 0:01:38.5]} 26... Bc6 {[%clk 0:00:46.8]} 27. Bb3 {[%clk 0:01:35]} 27...
cxb2 {[%clk 0:00:45.3]} 28. Rh7 {[%clk 0:01:26.5]} 28... Re7 {[%clk 0:00:37.2]}
29. Rxf7 {[%clk 0:01:26.1]} 29... Re8 {[%clk 0:00:37]} 30. Qxg6 {[%clk
0:01:17.4]} 30... Rxf7 {[%clk 0:00:34.3]} 31. Qxf7+ {[%clk 0:01:17.2]} 31... Re7
{[%clk 0:00:34.9]} 32. Qf5+ {[%clk 0:01:17.8]} 32... Kc7 {[%clk 0:00:34]} 33.
Qf6 {[%clk 0:01:07.5]} 33... Re1 {[%clk 0:00:30.4]} 34. Rxe1 {[%clk 0:01:07.8]}
34... Qxe1+ {[%clk 0:00:29.7]} 35. Kxb2 {[%clk 0:01:08.6]} 35... Kb6 {[%clk
0:00:26.5]} 36. g6 {[%clk 0:01:08.7]} 36... Kc5 {[%clk 0:00:16]} 37. g7 {[%clk
0:01:07.9]} 37... d4 {[%clk 0:00:16.9]} 38. Qf8+ {[%clk 0:00:56.3]} 38... Kb6
{[%clk 0:00:15.5]} 39. Qd8+ {[%clk 0:00:54.1]} 39... Kc5 {[%clk 0:00:15.4]} 40.
Qg5+ {[%clk 0:00:39]} 40... Kb6 {[%clk 0:00:13.3]} 41. g8=Q {[%clk 0:00:33.9]}
41... Qc3+ {[%clk 0:00:13.3]} 42. Kb1 {[%clk 0:00:34.3]} 42... d3 {[%clk
0:00:04.3]} 43. Qe3+ {[%clk 0:00:32.9]} 43... Kb7 {[%clk 0:00:04.8]} 44. Qf7+
{[%clk 0:00:31.3]} 44... Ka6 {[%clk 0:00:03.6]} 45. Qfxa7+ {[%clk 0:00:31.5]}
1-0

[Event "Late-Titled-Tuesday-Blitz-September-19-2023"]
[Site "Chess.com"]
[Date "2023.09.19"]
[Round "3"]
[White "wild3000"]
[Black "nitpicker"]
[Result "1-0"]
[WhiteElo "2462"]
[BlackElo "2236"]
[TimeControl "180+1"]
[EndTime "14:27:13 PDT"]
[Termination "wild3000 won on time"]

1. e4 {[%clk 0:02:18.1]} 1... c5 {[%clk 0:02:59.9]} 2. Nf3 {[%clk 0:02:18]} 2...
d6 {[%clk 0:03:00.1]} 3. d4 {[%clk 0:02:16.1]} 3... cxd4 {[%clk 0:02:59.8]} 4.
Nxd4 {[%clk 0:02:17]} 4... Nf6 {[%clk 0:03:00]} 5. Nc3 {[%clk 0:02:17]} 5... Nc6
{[%clk 0:03:00.3]} 6. Be2 {[%clk 0:02:12]} 6... e6 {[%clk 0:02:58]} 7. O-O
{[%clk 0:02:11.4]} 7... Be7 {[%clk 0:02:56.8]} 8. b3 {[%clk 0:02:10.5]} 8... a6
{[%clk 0:02:55.5]} 9. Bb2 {[%clk 0:02:10.6]} 9... Bd7 {[%clk 0:02:51.9]} 10. Nf3
{[%clk 0:01:58.7]} 10... b5 {[%clk 0:02:43.1]} 11. a3 {[%clk 0:01:58.4]} 11...
Bc8 {[%clk 0:02:34.1]} 12. a4 {[%clk 0:01:52.4]} 12... b4 {[%clk 0:02:31.6]} 13.
Na2 {[%clk 0:01:52.4]} 13... Nxe4 {[%clk 0:02:18.1]} 14. Bxg7 {[%clk 0:01:41.6]}
14... Rg8 {[%clk 0:02:15]} 15. Bb2 {[%clk 0:01:40.9]} 15... Bf6 {[%clk
0:02:06.6]} 16. Bxf6 {[%clk 0:01:38.4]} 16... Qxf6 {[%clk 0:02:06.4]} 17. Bd3
{[%clk 0:01:34.8]} 17... Ng5 {[%clk 0:01:57.3]} 18. Nxg5 {[%clk 0:01:29.5]}
18... Qxg5 {[%clk 0:01:56]} 19. g3 {[%clk 0:01:30]} 19... Bb7 {[%clk 0:01:31.3]}
20. Bxh7 {[%clk 0:01:25.7]} 20... Rh8 {[%clk 0:01:29.6]} 21. Be4 {[%clk
0:01:23.1]} 21... d5 {[%clk 0:01:21.6]} 22. Bg2 {[%clk 0:01:22.3]} 22... Ke7
{[%clk 0:01:02.9]} 23. h4 {[%clk 0:01:17.3]} 23... Qg6 {[%clk 0:00:51.1]} 24. c3
{[%clk 0:01:16.1]} 24... Rag8 {[%clk 0:00:40.2]} 25. Qf3 {[%clk 0:01:03.8]}
25... bxc3 {[%clk 0:00:27.1]} 26. Nxc3 {[%clk 0:01:00.6]} 26... Nd8 {[%clk
0:00:27.1]} 27. Rfe1 {[%clk 0:00:53.2]} 27... d4 {[%clk 0:00:22.7]} 28. Ne4
{[%clk 0:00:53]} 28... f5 {[%clk 0:00:20.7]} 29. Qf4 {[%clk 0:00:45.3]} 29...
Bxe4 {[%clk 0:00:17.5]} 30. Bxe4 {[%clk 0:00:42.8]} 30... fxe4 {[%clk 0:00:17]}
31. Rxe4 {[%clk 0:00:43.3]} 31... Nf7 {[%clk 0:00:11.7]} 32. Qc7+ {[%clk
0:00:34.7]} 32... Kf6 {[%clk 0:00:11.2]} 33. Rf4+ {[%clk 0:00:28.3]} 33... Kg7
{[%clk 0:00:11.5]} 34. Rxd4 {[%clk 0:00:26]} 34... e5 {[%clk 0:00:09.9]} 35. Rc4
{[%clk 0:00:16.2]} 35... Kh6 {[%clk 0:00:09]} 36. Rc6 {[%clk 0:00:15.4]} 36...
Rc8 {[%clk 0:00:06.7]} 37. Rxg6+ {[%clk 0:00:14.9]} 37... Kxg6 {[%clk
0:00:06.2]} 38. Qb6+ {[%clk 0:00:14.5]} 38... Kg7 {[%clk 0:00:05.9]} 39. Qxa6
{[%clk 0:00:14.5]} 39... Rc2 {[%clk 0:00:04.9]} 40. Qd3 {[%clk 0:00:13.7]} 40...
Rhc8 {[%clk 0:00:04.1]} 41. a5 {[%clk 0:00:13.3]} 41... R8c3 {[%clk 0:00:03.9]}
42. Qd1 {[%clk 0:00:12.3]} 42... Rb2 {[%clk 0:00:03.1]} 43. a6 {[%clk 0:00:12]}
1-0

[Event "Late-Titled-Tuesday-Blitz-September-19-2023"]
[Site "Chess.com"]
[Date "2023.09.19"]
[Round "3"]
[White "TEREZANA"]
[Black "rionelG"]
[Result "0-1"]
[WhiteElo "2481"]
[BlackElo "2333"]
[TimeControl "180+1"]
[EndTime "14:27:16 PDT"]
[Termination "rionelG won by resignation"]

1. d4 {[%clk 0:02:51.4]} 1... Nf6 {[%clk 0:02:59.1]} 2. Nf3 {[%clk 0:02:51.6]}
2... g6 {[%clk 0:02:58.4]} 3. Bg5 {[%clk 0:02:51.7]} 3... Bg7 {[%clk 0:02:58.1]}
4. Nbd2 {[%clk 0:02:49.7]} 4... d5 {[%clk 0:02:56.7]} 5. e3 {[%clk 0:02:49.7]}
5... O-O {[%clk 0:02:55.6]} 6. Bd3 {[%clk 0:02:50.1]} 6... c5 {[%clk 0:02:53.8]}
7. c3 {[%clk 0:02:50.5]} 7... Nc6 {[%clk 0:02:50.8]} 8. O-O {[%clk 0:02:50.8]}
8... Nd7 {[%clk 0:02:41.4]} 9. h3 {[%clk 0:02:47]} 9... f6 {[%clk 0:02:37.6]}
10. Bh4 {[%clk 0:02:46.6]} 10... Qe8 {[%clk 0:02:32.8]} 11. Bb5 {[%clk
0:02:37.4]} 11... e5 {[%clk 0:02:31.2]} 12. dxe5 {[%clk 0:02:34.4]} 12... Ndxe5
{[%clk 0:02:14.7]} 13. Nxe5 {[%clk 0:02:28.5]} 13... fxe5 {[%clk 0:02:02.4]} 14.
Nb3 {[%clk 0:02:27]} 14... c4 {[%clk 0:02:02.1]} 15. Nc5 {[%clk 0:02:13.9]}
15... Qf7 {[%clk 0:01:59.6]} 16. e4 {[%clk 0:02:06.1]} 16... d4 {[%clk 0:01:45]}
17. Qa4 {[%clk 0:02:02]} 17... Kh8 {[%clk 0:01:31.3]} 18. Qxc4 {[%clk
0:01:49.6]} 18... Qc7 {[%clk 0:01:06.5]} 19. Ne6 {[%clk 0:01:41.7]} 19... Bxe6
{[%clk 0:01:06.3]} 20. Qxe6 {[%clk 0:01:42.6]} 20... Rae8 {[%clk 0:01:05.2]} 21.
Qc4 {[%clk 0:01:39.4]} 21... a6 {[%clk 0:01:03.8]} 22. Bxc6 {[%clk 0:01:39.2]}
22... Qxc6 {[%clk 0:01:02.8]} 23. Qxc6 {[%clk 0:01:35.5]} 23... bxc6 {[%clk
0:01:03.7]} 24. c4 {[%clk 0:01:29.9]} 24... Rf4 {[%clk 0:01:02.8]} 25. Bg3
{[%clk 0:01:06.9]} 25... Rxe4 {[%clk 0:01:03.1]} 26. f3 {[%clk 0:01:03.3]} 26...
Re2 {[%clk 0:01:02]} 27. Rf2 {[%clk 0:01:03.3]} 27... Rxf2 {[%clk 0:00:56.5]}
28. Kxf2 {[%clk 0:01:04.2]} 28... Kg8 {[%clk 0:00:53.3]} 29. Re1 {[%clk
0:01:02.7]} 29... Kf7 {[%clk 0:00:52.1]} 30. Ke2 {[%clk 0:01:00.3]} 30... Ke6
{[%clk 0:00:39.7]} 31. Kd3 {[%clk 0:00:59]} 31... Kf5 {[%clk 0:00:37.1]} 32. Bh2
{[%clk 0:00:51.8]} 32... h5 {[%clk 0:00:33.2]} 33. g4+ {[%clk 0:00:48.3]} 33...
Kf6 {[%clk 0:00:32.8]} 34. f4 {[%clk 0:00:40.2]} 34... hxg4 {[%clk 0:00:26.5]}
35. fxe5+ {[%clk 0:00:30.8]} 35... Ke6 {[%clk 0:00:25.9]} 36. hxg4 {[%clk
0:00:29.8]} 36... Rh8 {[%clk 0:00:23.1]} 37. Re2 {[%clk 0:00:28.1]} 37... c5
{[%clk 0:00:22.2]} 38. b4 {[%clk 0:00:23.4]} 38... Rh3+ {[%clk 0:00:20.4]} 39.
Ke4 {[%clk 0:00:20.6]} 39... Rc3 {[%clk 0:00:18.9]} 40. bxc5 {[%clk 0:00:19.9]}
40... Rxc4 {[%clk 0:00:19.6]} 41. Kd3 {[%clk 0:00:20]} 41... Rxc5 {[%clk
0:00:19.6]} 42. Kxd4 {[%clk 0:00:20.7]} 42... Ra5 {[%clk 0:00:19.2]} 43. Bf4
{[%clk 0:00:18]} 43... Ra4+ {[%clk 0:00:18.3]} 44. Ke3 {[%clk 0:00:18.5]} 44...
Bxe5 {[%clk 0:00:16.6]} 45. Kf3 {[%clk 0:00:15.2]} 45... Rxf4+ {[%clk
0:00:15.8]} 46. Kg3 {[%clk 0:00:15.9]} 46... Ra4+ {[%clk 0:00:15.9]} 47. Kg2
{[%clk 0:00:15.4]} 47... Rxg4+ {[%clk 0:00:15.6]} 48. Kh3 {[%clk 0:00:15.6]}
48... Ra4 {[%clk 0:00:16]} 49. Kg2 {[%clk 0:00:15.5]} 49... Kf5 {[%clk
0:00:15.4]} 50. Rf2+ {[%clk 0:00:15.6]} 50... Rf4 {[%clk 0:00:15.7]} 51. Rc2
{[%clk 0:00:16.5]} 51... g5 {[%clk 0:00:15.6]} 0-1

[Event "Late-Titled-Tuesday-Blitz-September-19-2023"]
[Site "Chess.com"]
[Date "2023.09.19"]
[Round "3"]
[White "IMRosen"]
[Black "YEIKO2017"]
[Result "0-1"]
[WhiteElo "2583"]
[BlackElo "2454"]
[TimeControl "180+1"]
[EndTime "14:27:18 PDT"]
[Termination "YEIKO2017 won on time"]

1. e4 {[%clk 0:02:47.6]} 1... c5 {[%clk 0:02:50.2]} 2. d4 {[%clk 0:02:46.9]}
2... cxd4 {[%clk 0:02:49.9]} 3. c3 {[%clk 0:02:47.4]} 3... e5 {[%clk 0:02:50.5]}
4. cxd4 {[%clk 0:02:45.3]} 4... exd4 {[%clk 0:02:51.4]} 5. Nf3 {[%clk
0:02:45.6]} 5... Nc6 {[%clk 0:02:52]} 6. Nxd4 {[%clk 0:02:45.4]} 6... Nf6 {[%clk
0:02:52.6]} 7. Nc3 {[%clk 0:02:37.9]} 7... Bb4 {[%clk 0:02:52.9]} 8. Nxc6 {[%clk
0:02:22.2]} 8... dxc6 {[%clk 0:02:53.8]} 9. Qxd8+ {[%clk 0:02:13.7]} 9... Kxd8
{[%clk 0:02:54.7]} 10. Bg5 {[%clk 0:02:13.4]} 10... h6 {[%clk 0:02:53.7]} 11.
O-O-O+ {[%clk 0:02:07.8]} 11... Ke7 {[%clk 0:02:52.5]} 12. Bxf6+ {[%clk
0:01:54.5]} 12... gxf6 {[%clk 0:02:47.1]} 13. Bc4 {[%clk 0:01:37.4]} 13... Rg8
{[%clk 0:02:37.5]} 14. g3 {[%clk 0:01:33]} 14... Be6 {[%clk 0:02:31.5]} 15. Bxe6
{[%clk 0:01:29]} 15... fxe6 {[%clk 0:02:32.4]} 16. Rd3 {[%clk 0:01:26.1]} 16...
Rad8 {[%clk 0:02:20]} 17. Rhd1 {[%clk 0:01:26.1]} 17... Rxd3 {[%clk 0:02:19.6]}
18. Rxd3 {[%clk 0:01:27]} 18... Bc5 {[%clk 0:02:19.7]} 19. f4 {[%clk 0:01:24.3]}
19... h5 {[%clk 0:02:20]} 20. h4 {[%clk 0:00:54.2]} 20... Bf2 {[%clk 0:02:12.9]}
21. Ne2 {[%clk 0:00:53.7]} 21... f5 {[%clk 0:01:51]} 22. e5 {[%clk 0:00:49]}
22... c5 {[%clk 0:01:41.5]} 23. a4 {[%clk 0:00:39.7]} 23... Rd8 {[%clk
0:01:30.2]} 24. Rf3 {[%clk 0:00:33.9]} 24... Be1 {[%clk 0:01:29.4]} 25. Rf1
{[%clk 0:00:32]} 25... Bd2+ {[%clk 0:01:25.3]} 26. Kc2 {[%clk 0:00:31.8]} 26...
Bb4 {[%clk 0:01:17.6]} 27. Rd1 {[%clk 0:00:20.7]} 27... Rxd1 {[%clk 0:01:15.4]}
28. Kxd1 {[%clk 0:00:21.6]} 28... Kd7 {[%clk 0:01:15.5]} 29. Kc2 {[%clk
0:00:16.9]} 29... Kc6 {[%clk 0:01:13.7]} 30. Kd3 {[%clk 0:00:11.3]} 30... Be1
{[%clk 0:01:07.2]} 31. b3 {[%clk 0:00:10.4]} 31... Kd5 {[%clk 0:00:57.8]} 32.
Ke3 {[%clk 0:00:09.9]} 32... b6 {[%clk 0:00:45.3]} 33. Kd3 {[%clk 0:00:10.3]}
33... a6 {[%clk 0:00:45.1]} 34. Ke3 {[%clk 0:00:10.9]} 34... c4 {[%clk
0:00:40.9]} 35. bxc4+ {[%clk 0:00:10.4]} 35... Kxc4 {[%clk 0:00:40.6]} 36. Nd4
{[%clk 0:00:09.3]} 36... Bf2+ {[%clk 0:00:40]} 37. Kxf2 {[%clk 0:00:07.6]} 37...
Kxd4 {[%clk 0:00:40.9]} 38. Kf3 {[%clk 0:00:02.7]} 38... b5 {[%clk 0:00:35.6]}
39. a5 {[%clk 0:00:02]} 39... b4 {[%clk 0:00:32.6]} 40. Ke2 {[%clk 0:00:02.6]}
40... Kc3 {[%clk 0:00:24.9]} 41. g4 {[%clk 0:00:02.8]} 41... b3 {[%clk
0:00:15.8]} 42. gxf5 {[%clk 0:00:03.3]} 42... b2 {[%clk 0:00:14.6]} 43. fxe6
{[%clk 0:00:03.6]} 43... b1=Q {[%clk 0:00:15.1]} 44. e7 {[%clk 0:00:01.9]} 44...
Qb5+ {[%clk 0:00:14.7]} 45. Ke3 {[%clk 0:00:02.1]} 45... Qd7 {[%clk 0:00:14.5]}
46. Ke4 {[%clk 0:00:02.1]} 46... Qxe7 {[%clk 0:00:14.9]} 47. f5 {[%clk
0:00:02.2]} 47... Kc4 {[%clk 0:00:11.8]} 48. e6 {[%clk 0:00:01.2]} 48... Qd6
{[%clk 0:00:09.9]} 0-1